bitfinex-derivatives/quotes_BNBF0:USTF0_20250305
["timestamp","ask_amount","ask_price","bid_price","bid_amount"]
[1741142840945,0.33874764,590.41,588.87,0.33963353]
[1741142842945,0.3115104,590.4,588.89,1.24278761]
[1741142843246,0.33875912,590.39,588.91,0.33961046]
[1741142843443,0.3115104,590.38,588.91,0.33961046]
[1741142844042,0.3387706,590.37,588.91,0.33961046]
[1741142844250,0.3115104,590.36,588.91,0.33961046]
[1741142844750,0.33878207,590.35,588.91,0.33961046]
[1741142844944,0.3115104,590.34,588.91,0.33961046]
[1741142845144,0.33879355,590.33,588.91,0.33961046]
[1741142846246,0.33879355,590.33,588.99,1.24278761]
[1741142848353,0.33879355,590.33,589.09,1.24278761]
[1741142851152,0.33879355,590.33,589.22,1.24278761]
[1741142851953,0.33879355,590.33,589.23,0.33942603]
[1741142852857,0.33879355,590.33,589.5,1.24278761]
[1741142855456,0.33879355,590.33,589.42,1.24278761]
[1741142858659,0.33879355,590.33,589.56,1.24278761]
[1741142860765,0.33879355,590.33,589.23,0.33942603]
[1741142860766,0.33879355,590.33,589.59,1.24278761]
[1741142861763,2.60889719,591.17,589.59,1.24278761]
[1741142861964,0.31137278,591.16,589.59,1.24278761]
[1741142862161,0.64969638,591.15,589.59,1.24278761]
[1741142862365,0.31137278,591.14,589.59,1.24278761]
[1741142862568,0.31137278,591.13,589.59,1.24278761]
[1741142862768,0.31137278,591.12,589.59,1.24278761]
[1741142862968,0.31137278,591.11,589.59,1.24278761]
[1741142863270,0.31137278,591.1,589.59,1.24278761]
[1741142863471,0.31137278,591.1,589.23,0.33942603]
[1741142863472,0.31137278,591.09,589.67,1.24278761]
[1741142863669,1.50199509,591.13,589.67,1.24278761]
[1741142863870,0.31137278,591.12,589.67,1.24278761]
[1741142864070,1.26950305,591.12,589.67,1.24278761]
[1741142864369,0.31137278,591.11,589.67,1.24278761]
[1741142864871,0.33835794,591.09,589.67,1.24278761]
[1741142865072,0.31137278,591.08,589.67,1.24278761]
[1741142865870,0.33835794,591.09,589.57,1.24278761]
[1741142866070,0.31134032,591.08,589.57,1.24278761]
[1741142866572,1.96374062,591.08,589.57,1.24278761]
[1741142866764,0.31134032,591.07,589.57,1.24278761]
[1741142866966,0.31134032,591.06,589.57,1.24278761]
[1741142867167,0.31134032,591.05,589.57,1.24278761]
[1741142867372,0.31134032,591.07,589.57,1.24278761]
[1741142867574,0.31134032,591.06,589.57,1.24278761]
[1741142867777,0.33835794,591.09,589.57,1.24278761]
[1741142867975,0.31138288,591.08,589.57,1.24278761]
[1741142868475,0.31138288,591.08,589.61,1.24278761]
[1741142868676,0.31138288,591.07,589.61,1.24278761]
[1741142868976,5.33416132,591.18,589.61,1.24278761]
[1741142868977,0.33838084,591.05,589.61,1.24278761]
[1741142869178,0.31138288,591.04,589.61,1.24278761]
[1741142869379,0.33838084,591.05,589.61,1.24278761]
[1741142869580,0.31143053,591.04,589.61,1.24278761]
[1741142869779,0.33839802,591.02,589.61,1.24278761]
[1741142870080,0.31143053,591.01,589.61,1.24278761]
[1741142870378,0.31143053,591.0,589.61,1.24278761]
[1741142870578,0.31143053,590.99,589.61,1.24278761]
[1741142870780,0.31143053,590.98,589.61,1.24278761]
[1741142870980,0.31143053,590.97,589.61,1.24278761]
[1741142871179,0.31143053,590.96,589.61,1.24278761]
[1741142871374,0.31143053,590.95,589.61,1.24278761]
[1741142871580,0.31143053,591.01,589.61,1.24278761]
[1741142871782,0.31143053,591.0,589.56,1.24278761]
[1741142872075,0.31143053,590.99,589.56,1.24278761]
[1741142872278,0.31143053,590.98,589.56,1.24278761]
[1741142872478,0.31143053,590.97,589.56,1.24278761]
[1741142872675,0.3384381,590.95,589.56,1.24278761]
[1741142873081,0.31145303,590.94,589.56,1.24278761]
[1741142873381,0.33845529,590.92,589.56,1.24278761]
[1741142873580,0.31145303,590.91,589.56,1.24278761]
[1741142873781,0.33847247,590.89,589.56,1.24278761]
[1741142873983,0.31145303,590.88,589.56,1.24278761]
[1741142874182,0.31145303,590.88,589.41,1.24278761]
[1741142874384,0.33848965,590.86,589.41,1.24278761]
[1741142874679,0.31145303,590.85,589.41,1.24278761]
[1741142875080,0.33850684,590.83,589.41,1.24278761]
[1741142875282,0.31145303,590.82,589.41,1.24278761]
[1741142875484,0.33852403,590.8,589.41,1.24278761]
[1741142875682,0.31145303,590.79,589.41,1.24278761]
[1741142876684,0.33854122,590.77,589.23,0.33942603]
[1741142876876,0.31145303,590.76,589.23,0.33942603]
[1741142877079,0.33855841,590.74,589.23,0.33942603]
[1741142877282,0.31145303,590.73,589.23,0.33942603]
[1741142877478,0.33857561,590.71,589.23,0.33942603]
[1741142877681,0.31145303,590.7,589.23,0.33942603]
[1741142877881,0.3385928,590.68,589.23,0.33942603]
[1741142878079,0.31145303,590.67,589.23,0.33942603]
[1741142879081,0.31145303,590.67,589.31,1.24278761]
[1741142879578,0.33861,590.65,589.31,1.24278761]
[1741142879979,0.31157945,590.64,589.31,1.24278761]
[1741142880579,0.3386272,590.62,589.31,1.24278761]
[1741142880784,0.31157945,590.61,589.31,1.24278761]
[1741142880985,0.3386444,590.59,589.31,1.24278761]
[1741142881385,0.31158544,590.58,589.31,1.24278761]
[1741142881986,0.31158544,590.58,589.23,0.33942603]
[1741142882382,0.3386616,590.56,589.23,0.33942603]
[1741142882583,0.31158544,590.55,589.23,0.33942603]
[1741142882982,0.33867881,590.53,589.23,0.33942603]
[1741142883384,0.31151752,590.52,589.23,0.33942603]
[1741142884484,0.33867881,590.53,589.23,0.33942603]
[1741142884680,0.33867881,590.53,589.35,1.24278761]
[1741142886889,0.33867881,590.53,589.59,1.24278761]
[1741142888793,0.33867881,590.53,589.69,1.24278761]
[1741142893201,0.33867881,590.53,589.43,1.24278761]
[1741142894001,0.31147453,590.52,589.43,1.24278761]
[1741142894402,0.33869028,590.51,589.43,1.24278761]
[1741142894802,0.31147453,590.5,589.43,1.24278761]
[1741142894998,0.31147453,590.5,589.34,1.24278761]
[1741142895202,0.33870175,590.49,589.34,1.24278761]
[1741142896102,0.31149441,590.48,589.34,1.24278761]
[1741142896297,0.33871322,590.47,589.34,1.24278761]
[1741142897100,0.31152555,590.46,589.24,1.24278761]
[1741142897902,0.33873043,590.44,589.24,1.24278761]
[1741142898105,0.31152555,590.43,589.24,1.24278761]
[1741142899704,0.33874191,590.42,589.24,1.24278761]
[1741142899906,0.31156668,590.41,589.24,1.24278761]
[1741142900105,0.33875338,590.4,589.23,0.33942603]
[1741142900912,0.31155855,590.39,589.23,0.33942603]
[1741142901209,0.33876486,590.38,589.23,0.33942603]
[1741142901405,0.31155855,590.37,589.23,0.33942603]
[1741142902510,0.31155855,590.37,589.33,1.24278761]
[1741142903304,0.33876486,590.38,589.33,1.24278761]
[1741142903509,0.3116135,590.37,589.33,1.24278761]
[1741142903710,0.33878207,590.35,589.33,1.24278761]
[1741142903908,0.3116135,590.34,589.33,1.24278761]
[1741142904211,0.33879355,590.33,589.33,1.24278761]
[1741142904411,0.3116135,590.32,589.33,1.24278761]
[1741142904612,0.33880503,590.31,589.33,1.24278761]
[1741142904910,0.3116135,590.3,589.33,1.24278761]
[1741142905211,0.33881651,590.29,589.33,1.24278761]
[1741142905408,0.3116135,590.28,589.15,1.24278761]
[1741142905611,0.33882799,590.27,589.15,1.24278761]
[1741142905817,0.3116135,590.26,589.15,1.24278761]
[1741142906114,0.33883947,590.25,589.15,1.24278761]
[1741142906410,0.3116135,590.24,589.15,1.24278761]
[1741142907312,0.33883947,590.25,589.15,1.24278761]
[1741142907604,0.33883947,590.25,589.07,1.25490875]
[1741142907605,0.31165027,590.24,589.07,1.25490875]
[1741142907811,0.31165027,590.24,589.04,1.24278761]
[1741142908412,0.33885095,590.23,589.04,1.24278761]
[1741142908611,0.31165027,590.22,589.04,1.24278761]
[1741142910013,0.33885095,590.23,589.04,1.24278761]
[1741142910913,0.33885095,590.23,588.54,2.56210536]
[1741142910914,0.33885095,590.23,589.0,1.24278761]
[1741142912813,0.33885095,590.23,589.05,1.24278761]
[1741142915015,0.33885095,590.23,589.04,1.24278761]
[1741142916618,0.33885095,590.23,589.05,0.33952975]
[1741142918915,0.33885095,590.23,589.23,1.24278761]
[1741142920317,0.33885095,590.23,589.2,1.24278761]
[1741142922522,0.33885095,590.23,589.18,1.24278761]
[1741142923822,0.33885095,590.23,589.19,0.33944907]
[1741142924521,0.33885095,590.23,589.42,1.24278761]
[1741142928823,0.33885095,590.23,589.61,1.24278761]
[1741142930726,0.33885095,590.23,589.39,1.24278761]
[1741142933425,0.33885095,590.23,589.46,1.24278761]
[1741142935727,0.33885095,590.23,589.11,1.24278761]
[1741142937531,0.33885095,590.23,589.05,1.24278761]
[1741142939830,0.33885095,590.23,588.69,1.5058905]
[1741142939831,4.1614697,590.93,589.34,1.24278761]
[1741142940028,0.33846101,590.91,589.34,1.24278761]
[1741142940225,0.31144071,590.9,589.34,1.24278761]
[1741142940428,0.3384782,590.88,589.34,1.24278761]
[1741142940631,0.31144071,590.87,589.34,1.24278761]
[1741142941032,4.50122129,590.88,589.34,1.24278761]
[1741142941234,4.47422978,590.87,589.34,1.24278761]
[1741142941529,5.66485209,590.86,589.34,1.24278761]
[1741142941729,4.16274309,590.85,589.34,1.24278761]
[1741142941934,1.27409169,590.84,589.35,1.24278761]
[1741142942135,0.31148669,590.83,589.35,1.24278761]
[1741142942330,0.31148669,590.82,589.35,1.24278761]
[1741142942534,0.31148669,590.81,589.35,1.24278761]
[1741142942732,0.31148669,590.83,589.35,1.24278761]
[1741142942934,0.3385183,590.81,589.35,1.24278761]
[1741142943130,0.31148669,590.8,589.35,1.24278761]
[1741142943330,0.31148669,590.79,589.35,1.24278761]
[1741142943529,0.31148669,590.78,589.35,1.24278761]
[1741142943732,0.33854695,590.76,589.35,1.24278761]
[1741142943931,0.31148669,590.75,589.35,1.24278761]
[1741142944237,0.31148669,590.75,589.45,1.24278761]
[1741142944429,0.33854695,590.76,589.45,1.24278761]
[1741142944630,0.31152073,590.75,589.45,1.24278761]
[1741142945231,0.31152073,590.74,589.45,1.24278761]
[1741142945435,0.31152073,590.73,589.45,1.24278761]
[1741142945634,0.31152073,590.72,589.45,1.24278761]
[1741142945935,0.31152073,590.71,589.45,1.24278761]
[1741142946139,0.33858707,590.69,589.45,1.24278761]
[1741142946339,0.31158839,590.68,589.45,1.24278761]
[1741142946541,0.31158839,590.67,589.43,1.24278761]
[1741142946743,0.31158839,590.66,589.43,1.24278761]
[1741142947038,0.31158839,590.68,589.43,1.24278761]
[1741142947239,0.31158839,590.67,589.43,1.24278761]
[1741142947441,1.97206981,590.67,589.43,1.24278761]
[1741142947638,0.31158839,590.66,589.43,1.24278761]
[1741142948039,0.33861573,590.64,589.43,1.24278761]
[1741142948236,0.31158839,590.63,589.43,1.24278761]
[1741142948639,1.00891873,590.58,589.43,1.24278761]
[1741142948937,0.31158839,590.57,589.43,1.24278761]
[1741142949238,0.31158839,590.56,589.43,1.24278761]
[1741142949442,0.31158839,590.55,589.43,1.24278761]
[1741142949744,0.31158839,590.54,589.35,1.24278761]
[1741142949941,0.31158839,590.53,589.35,1.24278761]
[1741142950135,5.66649012,590.59,589.35,1.24278761]
[1741142950438,4.47586781,590.58,589.35,1.24278761]
[1741142950637,5.66649012,590.57,589.35,1.24278761]
[1741142950838,4.47586781,590.56,589.35,1.24278761]
[1741142951043,4.47586781,590.55,589.35,1.24278761]
[1741142951243,0.33867881,590.53,589.35,1.24278761]
[1741142951441,0.31158839,590.52,589.35,1.24278761]
[1741142951646,1.97206981,590.52,589.35,1.24278761]
[1741142951945,0.31158839,590.51,589.18,1.24278761]
[1741142952441,4.12569135,590.51,589.18,1.24278761]
[1741142952647,2.81538639,590.5,589.18,1.24278761]
[1741142952849,1.97422151,590.49,589.18,1.24278761]
[1741142953047,0.31158839,590.48,589.18,1.24278761]
[1741142953546,1.97457639,590.49,589.18,1.24278761]
[1741142953748,0.31158839,590.48,589.18,1.24278761]
[1741142954249,0.31158839,590.47,589.18,1.24278761]
[1741142954443,0.31158839,590.52,589.18,1.24278761]
[1741142954649,0.31158839,590.51,589.19,1.24278761]
[1741142954847,0.31158839,590.52,589.19,1.24278761]
[1741142955043,0.31158839,590.51,589.19,1.24278761]
[1741142955242,0.31158839,590.52,589.19,1.24278761]
[1741142955444,0.31158839,590.51,589.19,1.24278761]
[1741142955644,2.854216,590.63,589.19,1.24278761]
[1741142955645,0.31158839,590.52,589.19,1.24278761]
[1741142955847,0.31158839,590.51,589.19,1.24278761]
[1741142956047,0.31158839,590.52,589.19,1.24278761]
[1741142956245,0.31158839,590.51,589.19,1.24278761]
[1741142956449,0.31158839,590.52,589.19,1.24278761]
[1741142956645,0.31158839,590.51,589.19,1.24278761]
[1741142956846,0.31158839,590.52,589.19,1.24278761]
[1741142957153,0.31158839,590.52,589.32,1.24278761]
[1741142957650,0.31158839,590.51,589.32,1.24278761]
[1741142957854,0.31158839,590.52,589.32,1.24278761]
[1741142958055,0.31158839,590.51,589.32,1.24278761]
[1741142958252,0.31158839,590.52,589.32,1.24278761]
[1741142958448,0.31158839,590.51,589.32,1.24278761]
[1741142958654,0.31158839,590.52,589.09,1.24278761]
[1741142958856,0.33869602,590.5,589.09,1.24278761]
[1741142959049,0.31158839,590.49,589.09,1.24278761]
[1741142959955,0.33871322,590.47,589.09,1.24278761]
[1741142960155,0.31158839,590.46,589.09,1.24278761]
[1741142960353,0.33873043,590.44,589.09,1.24278761]
[1741142960554,0.31158839,590.43,589.14,1.24278761]
[1741142960854,0.33874764,590.41,589.14,1.24278761]
[1741142961055,0.31158839,590.4,589.14,1.24278761]
[1741142961254,0.33876486,590.38,589.14,1.24278761]
[1741142961451,0.31158839,590.37,589.14,1.24278761]
[1741142961652,0.33878207,590.35,589.14,1.24278761]
[1741142961854,0.31158839,590.34,589.14,1.24278761]
[1741142962055,0.33879929,590.32,589.14,1.24278761]
[1741142962254,0.31158839,590.31,589.14,1.24278761]
[1741142962450,0.33881651,590.29,589.14,1.24278761]
[1741142962657,0.31158839,590.28,589.11,1.24278761]
[1741142962958,0.33882799,590.27,589.11,1.24278761]
[1741142963159,0.31158839,590.26,589.11,1.24278761]
[1741142963351,0.33883947,590.25,589.11,1.24278761]
[1741142963558,0.31158839,590.24,589.11,1.24278761]
[1741142963755,0.33885095,590.23,589.11,1.24278761]
[1741142964860,0.33885095,590.23,589.27,1.24278761]
[1741142967063,0.33885095,590.23,589.12,1.24278761]
[1741142967456,0.3116477,590.22,589.12,1.24278761]
[1741142968261,0.33886243,590.21,589.12,1.24278761]
[1741142969567,0.33886243,590.21,589.09,1.24278761]
[1741142972262,0.33886243,590.21,589.24,1.24278761]
[1741142972463,0.31168019,590.2,589.24,1.24278761]
[1741142972668,0.33887392,590.19,589.24,1.24278761]
[1741142972868,0.31168019,590.18,589.24,1.24278761]
[1741142973067,0.3388854,590.17,589.24,1.24278761]
[1741142974072,0.3388854,590.17,589.1,1.24278761]
[1741142976869,0.3388854,590.17,589.19,1.24278761]
[1741142979276,0.3388854,590.17,589.26,1.24278761]
[1741142979670,0.31166659,590.16,589.26,1.24278761]
[1741142979877,0.33889689,590.15,589.26,1.24278761]
[1741142980074,0.31166659,590.14,589.26,1.24278761]
[1741142980276,0.33890837,590.13,589.26,1.24278761]
[1741142982177,0.33890837,590.13,588.75,2.56210536]
[1741142982178,0.33890837,590.13,589.25,1.24278761]
[1741142984472,0.33890837,590.13,589.3,1.24278761]
[1741142986875,0.33890837,590.13,589.35,1.24278761]
[1741142990177,0.33890837,590.13,589.36,1.24278761]
[1741142992574,0.33890837,590.13,589.37,1.24278761]
[1741142994474,0.33890837,590.13,589.4,1.24278761]
[1741142996975,0.31163775,590.12,589.4,1.24278761]
[1741142997177,0.33890837,590.13,589.4,1.24278761]
[1741142997382,0.33890837,590.13,589.39,1.24278761]
[1741143000288,0.33890837,590.13,589.51,1.24278761]
[1741143002683,0.33890837,590.13,589.55,1.24278761]
[1741143005487,0.33890837,590.13,589.37,1.24278761]
[1741143007592,0.33890837,590.13,589.58,1.24278761]
[1741143009990,0.33890837,590.13,589.5,1.24278761]
[1741143012895,0.33890837,590.13,589.58,1.24278761]
[1741143015088,0.33890837,590.13,589.37,1.5058905]
[1741143015089,0.33890837,590.13,589.26,1.24278761]
[1741143017600,0.33890837,590.13,589.29,1.24278761]
[1741143018299,4.17649763,591.0,589.29,1.24278761]
[1741143018504,0.33842092,590.98,589.3,0.33938571]
[1741143018706,0.31139307,590.97,589.3,0.33938571]
[1741143019506,4.4878907,590.97,589.3,0.33938571]
[1741143019707,1.97688448,590.96,589.3,0.33938571]
[1741143019903,0.31139307,590.95,589.3,0.33938571]
[1741143020108,0.31139307,590.95,589.62,1.24278761]
[1741143020408,1.27716469,590.95,589.62,1.24278761]
[1741143020609,0.31139307,590.94,589.62,1.24278761]
[1741143021606,0.33845529,590.92,589.62,1.24278761]
[1741143021809,0.31139307,590.91,589.62,1.24278761]
[1741143022603,0.31139307,590.91,589.46,1.24278761]
[1741143023309,4.14524423,590.91,589.46,1.24278761]
[1741143023509,2.47975282,590.9,589.46,1.24278761]
[1741143023811,0.3384782,590.88,589.46,1.24278761]
[1741143024007,0.31139307,590.87,589.46,1.24278761]
[1741143024212,0.33849538,590.85,589.46,1.24278761]
[1741143024412,0.31139307,590.84,589.3,0.33938571]
[1741143024805,0.33849538,590.85,589.3,0.33938571]
[1741143025006,0.31137653,590.84,589.3,0.33938571]
[1741143025813,0.33850684,590.83,589.3,0.33938571]
[1741143026014,0.31137653,590.82,589.3,0.33938571]
[1741143026512,0.3385183,590.81,589.3,0.33938571]
[1741143026708,0.31137862,590.8,589.3,0.33938571]
[1741143027813,0.31137862,590.8,589.54,1.24278761]
[1741143028213,0.3385183,590.81,589.54,1.24278761]
[1741143028412,0.31138364,590.8,589.54,1.24278761]
[1741143029514,0.3113824,590.79,589.54,1.24278761]
[1741143029814,0.3113824,590.78,589.54,1.24278761]
[1741143030116,0.31138584,590.77,589.54,1.24278761]
[1741143030312,0.31138584,590.8,589.54,1.24278761]
[1741143030513,0.31138584,590.79,589.54,1.24278761]
[1741143030814,0.31138584,590.78,589.6,1.24278761]
[1741143031009,0.31138584,590.8,589.6,1.24278761]
[1741143031811,0.3385183,590.81,589.6,1.24278761]
[1741143032017,0.31136747,590.8,589.6,1.24278761]
[1741143032610,0.31136747,590.8,589.52,1.25490875]
[1741143032815,0.31136747,590.8,589.38,1.24278761]
[1741143033616,0.31136747,590.8,589.39,0.33933388]
[1741143035017,0.31136747,590.8,589.39,1.58212149]
[1741143035316,0.31136875,590.79,589.39,1.58212149]
[1741143035512,0.31136875,590.8,589.39,1.58212149]
[1741143035917,0.33852976,590.79,589.39,1.58212149]
[1741143036115,0.31136875,590.78,589.39,1.58212149]
[1741143036517,0.33854122,590.77,589.39,1.58212149]
[1741143036719,0.31136875,590.76,589.39,1.58212149]
[1741143037220,0.33855268,590.75,589.63,1.24278761]
[1741143039921,0.33855268,590.75,589.49,1.24278761]
[1741143040119,0.31137185,590.74,589.49,1.24278761]
[1741143040518,0.64993747,590.73,589.49,1.24278761]
[1741143040718,0.64994321,590.72,589.49,1.24278761]
[1741143040919,0.64994894,590.71,589.49,1.24278761]
[1741143041416,0.33857561,590.71,589.5,0.33927056]
[1741143044725,0.33857561,590.71,589.75,1.24278761]
[1741143047118,0.33857561,590.71,589.72,1.24278761]
[1741143049422,0.33857561,590.71,589.67,1.24278761]
[1741143051830,0.33857561,590.71,589.87,1.24278761]
[1741143054128,0.33857561,590.71,589.9,1.24278761]
[1741143056938,0.33857561,590.71,589.84,1.24278761]
[1741143060140,0.33857561,590.71,589.86,1.24278761]
[1741143061746,0.33857561,590.71,589.88,1.24278761]
[1741143062643,4.15459157,591.46,589.88,1.24278761]
[1741143062844,0.33815771,591.44,589.88,1.24278761]
[1741143063039,0.31116266,591.43,589.88,1.24278761]
[1741143063739,0.31116266,591.42,589.88,1.24278761]
[1741143063940,0.31116266,591.43,589.88,1.24278761]
[1741143064151,0.31116266,591.42,589.88,1.24278761]
[1741143064445,0.31116266,591.41,589.88,1.24278761]
[1741143064640,0.31116266,591.43,589.88,1.24278761]
[1741143064845,0.31116266,591.42,589.88,1.24278761]
[1741143065045,0.31116266,591.41,590.06,1.24278761]
[1741143065239,0.33815771,591.44,590.06,1.24278761]
[1741143066943,0.31106677,591.43,590.06,1.24278761]
[1741143068944,0.31106677,591.43,589.96,1.24278761]
[1741143071048,0.31106677,591.43,589.72,1.24278761]
[1741143072442,0.31106677,591.42,589.72,1.24278761]
[1741143072645,0.31106677,591.41,589.72,1.24278761]
[1741143072844,0.31106677,591.4,589.72,1.24278761]
[1741143073043,0.31106677,591.39,589.84,1.24278761]
[1741143073245,0.33815771,591.44,589.84,1.24278761]
[1741143073547,0.31118291,591.43,589.84,1.24278761]
[1741143073748,0.31118291,591.42,589.84,1.24278761]
[1741143073945,0.31118291,591.41,589.84,1.24278761]
[1741143074143,0.31118291,591.4,589.84,1.24278761]
[1741143074345,0.31118291,591.39,589.84,1.24278761]
[1741143074545,0.31118291,591.38,589.84,1.24278761]
[1741143074748,0.31118291,591.37,589.84,1.24278761]
[1741143074943,0.31118291,591.36,589.84,1.24278761]
[1741143075147,0.31118291,591.35,589.84,1.24278761]
[1741143075348,0.31118291,591.34,589.84,1.24278761]
[1741143075548,1.34236682,591.44,589.82,1.24278761]
[1741143075549,0.31118291,591.33,589.82,1.24278761]
[1741143075756,0.31118291,591.32,589.82,1.24278761]
[1741143076049,0.31118291,591.31,589.82,1.24278761]
[1741143076251,0.31118291,591.3,589.82,1.24278761]
[1741143076450,0.31118291,591.29,589.82,1.24278761]
[1741143076650,0.31118291,591.28,589.82,1.24278761]
[1741143076850,0.31118291,591.27,589.82,1.24278761]
[1741143077046,0.31118291,591.26,589.82,1.24278761]
[1741143077250,0.31118291,591.25,589.82,1.24278761]
[1741143077550,0.31118291,591.24,589.82,1.24278761]
[1741143077851,0.31118291,591.23,589.82,1.24278761]
[1741143078051,0.31118291,591.22,589.82,1.24278761]
[1741143078351,0.31118291,591.21,589.65,1.24278761]
[1741143078546,0.31129465,591.2,589.65,1.24278761]
[1741143078747,0.31129465,591.37,589.65,1.24278761]
[1741143079046,4.20069448,591.39,589.65,1.24278761]
[1741143079047,0.31129465,591.36,589.65,1.24278761]
[1741143079253,0.31129465,591.35,589.65,1.24278761]
[1741143079457,0.31129465,591.34,589.65,1.24278761]
[1741143079651,0.31129465,591.33,589.65,1.24278761]
[1741143079947,0.31129465,591.32,589.68,1.24278761]
[1741143080148,0.31129465,591.31,589.68,1.24278761]
[1741143080348,1.00642836,591.25,589.68,1.24278761]
[1741143080552,0.31129465,591.24,589.68,1.24278761]
[1741143080851,0.31129465,591.23,589.68,1.24278761]
[1741143081154,0.31129465,591.22,589.68,1.24278761]
[1741143081351,0.31129465,591.21,589.68,1.24278761]
[1741143081550,0.31129465,591.2,589.68,1.24278761]
[1741143081750,1.00681846,591.22,589.68,1.24278761]
[1741143081947,0.31136491,591.21,589.44,1.24278761]
[1741143082246,0.31136491,591.2,589.44,1.24278761]
[1741143082452,0.31136491,591.19,589.44,1.24278761]
[1741143082752,0.31136491,591.18,589.44,1.24278761]
[1741143082953,4.15671998,591.23,589.44,1.24278761]
[1741143082954,0.31136491,591.17,589.44,1.24278761]
[1741143083148,0.31136491,591.16,589.44,1.24278761]
[1741143083351,0.31136491,591.15,589.44,1.24278761]
[1741143083554,5.16353844,591.19,589.44,1.24278761]
[1741143083754,1.34513062,591.17,589.44,1.24278761]
[1741143084055,0.3383236,591.15,589.44,1.24278761]
[1741143084255,0.31138239,591.14,589.49,1.24278761]
[1741143084447,1.00681846,591.12,589.49,1.24278761]
[1741143084754,0.3383236,591.15,589.49,1.24278761]
[1741143084755,1.31820085,591.11,589.49,1.24278761]
[1741143084955,0.31138239,591.1,589.49,1.24278761]
[1741143085155,0.33836367,591.08,589.49,1.24278761]
[1741143085351,0.31138239,591.07,589.49,1.24278761]
[1741143085551,0.33838084,591.05,589.49,1.24278761]
[1741143085758,0.31138239,591.04,589.49,1.24278761]
[1741143086057,0.33839802,591.02,589.49,1.24278761]
[1741143086257,0.31138239,591.01,589.49,1.24278761]
[1741143086457,0.31138239,591.0,589.49,1.24278761]
[1741143086663,0.31138239,590.99,589.49,1.24278761]
[1741143086861,1.34521648,591.02,589.49,1.24278761]
[1741143087064,1.31829254,591.01,589.49,1.24278761]
[1741143087362,1.00681846,590.91,589.49,1.24278761]
[1741143087562,0.31147408,590.9,589.46,1.24278761]
[1741143087761,0.31147408,590.89,589.46,1.24278761]
[1741143087956,0.31147408,590.88,589.46,1.24278761]
[1741143088160,0.31147408,590.87,589.46,1.24278761]
[1741143088456,0.31147408,590.86,589.46,1.24278761]
[1741143088863,0.31147408,590.85,589.46,1.24278761]
[1741143089063,0.31147408,590.84,589.46,1.24278761]
[1741143089264,0.31147408,590.83,589.46,1.24278761]
[1741143089460,0.31147408,590.82,589.46,1.24278761]
[1741143089764,0.31147408,590.81,589.46,1.24278761]
[1741143089964,0.31147408,590.8,589.46,1.24278761]
[1741143090265,0.31147408,590.79,589.46,1.24278761]
[1741143090461,0.31147408,590.78,589.14,1.24278761]
[1741143090763,0.31147408,590.77,589.15,0.33947212]
[1741143090966,0.31147408,590.76,589.15,0.33947212]
[1741143091161,0.31147408,590.75,589.15,0.33947212]
[1741143091466,0.31147408,590.74,589.15,0.33947212]
[1741143091667,4.46679391,590.89,589.15,0.33947212]
[1741143091862,4.46679391,590.88,589.15,0.33947212]
[1741143092067,4.46679391,590.87,589.15,0.33947212]
[1741143092266,4.46679391,590.86,589.15,0.33947212]
[1741143092464,0.33850111,590.84,589.15,0.33947212]
[1741143092665,0.31147408,590.83,589.15,0.33947212]
[1741143092968,0.3385183,590.81,589.15,0.33947212]
[1741143093162,0.31147408,590.8,589.15,0.33947212]
[1741143093367,0.33853549,590.78,589.15,0.33947212]
[1741143093667,0.31147408,590.77,589.15,0.33947212]
[1741143093867,0.31147408,590.76,589.15,0.33947212]
[1741143094070,0.33855841,590.74,589.15,0.33947212]
[1741143094268,0.31147408,590.73,589.15,0.33947212]
[1741143094467,0.33857561,590.71,589.15,0.33947212]
[1741143094671,0.31147408,590.7,589.15,0.33947212]
[1741143094863,0.31147408,590.69,589.15,0.33947212]
[1741143095064,0.33859854,590.67,589.15,0.33947212]
[1741143095364,0.31147408,590.66,589.15,0.33947212]
[1741143095564,0.33861573,590.64,589.15,0.33947212]
[1741143095770,0.31147408,590.63,589.15,0.33947212]
[1741143095968,0.33863293,590.61,589.15,0.33947212]
[1741143096162,0.31147408,590.6,589.15,0.33947212]
[1741143096367,0.33865014,590.58,589.15,0.33947212]
[1741143096570,0.31147408,590.57,589.15,0.33947212]
[1741143096771,0.33866734,590.55,589.15,0.33947212]
[1741143096968,0.31147408,590.54,589.15,0.33947212]
[1741143097172,0.31147408,590.53,589.15,0.33947212]
[1741143097369,0.65015862,590.52,589.15,0.33947212]
[1741143097571,0.33869602,590.5,589.15,0.33947212]
[1741143097770,0.31147408,590.49,589.15,0.33947212]
[1741143097972,0.31147408,590.48,589.15,0.33947212]
[1741143098267,0.33869602,590.5,589.15,0.33947212]
[1741143098268,0.31147408,590.47,589.15,0.33947212]
[1741143098572,0.31147408,590.46,588.58,1.24278761]
[1741143098776,0.31147408,590.49,588.6,0.33978933]
[1741143099072,0.33869602,590.5,588.6,0.33978933]
[1741143099271,0.31168559,590.49,588.6,0.33978933]
[1741143101369,0.33871322,590.47,588.6,0.33978933]
[1741143101566,0.31168559,590.46,588.6,0.33978933]
[1741143101772,0.33873043,590.44,588.6,0.33978933]
[1741143101971,0.31168559,590.43,588.6,0.33978933]
[1741143102978,0.33874764,590.41,588.6,0.33978933]
[1741143103170,0.31168559,590.4,588.6,0.33978933]